[Event "LEM Niedersachsen-A-Open 2025"]
[Site "Verden"]
[Date "2025.01.04"]
[Round "6.16"]
[White "Koch, Yannick"]
[Black "Bangert, Jonas"]
[Result "1-0"]
[ECO "E47"]
[WhiteElo "2024"]
[BlackElo "1894"]
[Annotator "NA RC"]
[PlyCount "93"]
[EventDate "2024.12.27"]
[EventType "swiss"]
[EventCountry "GER"]
[SourceTitle "playchess.com"]
[Source "ChessBase"]
[SourceQuality "1"]
[TimeControl "40/5400+30:1800+30"]

1. d4 {[%emt 0:00:10]} Nf6 {[%emt 0:00:06]} 2. c4 {[%emt 0:00:06]} e6 {[%emt 0:00:03]} 3. Nc3 {[%emt 0:00:09]} Bb4 {[%emt 0:00:05]} 4. e3 {[%emt 0:01:29]} O-O {[%emt 0:01:00]} 5. Bd3 {[%emt 0:00:14]} c5 {[%emt 0:01:10]} 6. Nge2 {[%emt 0:01:05]} cxd4 {[%emt 0:02:16]} 7. exd4 {[%emt 0:00:22]} b6 {[%emt 0:01:50]} 8. O-O {[%emt 0:01:17]} d5 {[%emt 0:01:52]} 9. Bg5 {[%emt 0:00:37]} Be7 {[%emt 0:01:20]} 10. cxd5 {[%emt 0:11:12]} Nxd5 {[%emt 0:00:52]} 11. Bxe7 {[%emt 0:00:29]} Nxe7 {[%emt 0:02:59]} 12. Qc2 {[%emt 0:01:17]} h6 {[%emt 0:00:09]} 13. Be4 {[%emt 0:00:55]} Nbc6 {[%emt 0:00:43]} 14. Rfd1 {[%emt 0:03:30]} Bb7 {[%emt 0:01:42]} 15. a3 {[%emt 0:03:03]} Rc8 {[%emt 0:03:40]} 16. Qa4 {[%emt 0:04:54]} Qc7 {[%emt 0:04:01]} 17. Rac1 {[%emt 0:01:33]} Rfd8 {[%emt 0:01:56]} 18. d5 {[%emt 0:02:32]} exd5 {[%emt 0:00:18]} 19. Nxd5 {[%emt 0:00:36]} Nxd5 {[%emt 0:00:42]} 20. Bxd5 {[%emt 0:00:18]} Qb8 {[%emt 0:13:23]} 21. Ng3 {[%emt 0:10:59]} Ne5 {[%emt 0:10:07]} 22. Ba2 {[%emt 0:05:22]} Rxc1 {[%emt 0:05:43]} 23. Rxc1 {[%emt 0:00:04]} a5 {[%emt 0:05:44]} 24. Qb5 {[%emt 0:07:17]} Nd3 {[%emt 0:07:03]} 25. Rd1 {[%emt 0:04:08]} Nc5 {[%emt 0:03:43]} 26. Re1 {[%emt 0:03:00]} Qc7 {[%emt 0:05:42]} 27. Re8+ {[%emt 0:03:50]} Kh7 {[%emt 0:00:11]} 28. Bb1+ {[%emt 0:00:35]} g6 {[%emt 0:00:11]} 29. Rxd8 {[%emt 0:05:10]} Qxd8 {[%emt 0:00:01]} 30. Qe2 {[%emt 0:00:55]} Qd5 {[%emt 0:00:57]} 31. f3 {[%emt 0:00:20]} Ba6 {[%emt 0:01:24]} 32. Qc2 {[%emt 0:04:41]} Qd4+ {[%emt 0:02:47]} 33. Kh1 {[%emt 0:00:11]} Qe3 {[%emt 0:03:11]} 34. Qd1 {[%emt 0:00:31]} Na4 {[%emt 0:02:38]} 35. h4 {[%emt 0:07:01]} Nxb2 {[%emt 0:02:21]} 36. Qd7 {[%emt 0:00:32]} Bc4 {[%emt 0:04:32]} 37. Kh2 {[%emt 0:09:35]} Be6 {[%emt 0:02:46]} 38. Qe7 {[%emt 0:00:56]} Qc5 {[%emt 0:00:56]} 39. Qf6 {[%emt 0:00:52]} Qc1 {[%emt 0:02:59]} 40. Bxg6+ {[%emt 0:01:49]} fxg6 {[%emt 0:00:55]} 41. Qe7+ {[%emt 0:31:51]} Kh8 {[%emt 0:30:46]} 42. Qxe6 {[%emt 0:03:26]} Qf4 {[%emt 0:02:23]} 43. Kh3 {[%emt 0:00:00]} Nc4 {[%emt 0:00:00]} 44. Qxg6 {[%emt 0:00:00]} Qf8 {[%emt 0:00:00]} 45. a4 {[%emt 0:00:00]} Nd6 {[%emt 0:00:00]} 46. Qg4 {[%emt 0:00:00]} Nf7 {[%emt 0:02:14]} 47. Qd4+ {[%emt 0:00:00]} 1-0

[Event "LEM Niedersachsen-A-Open 2025"]
[Site "Verden"]
[Date "2025.01.04"]
[Round "6.17"]
[White "Kiesel, Lucas"]
[Black "Nuerenberg, Marius"]
[Result "1-0"]
[ECO "E19"]
[WhiteElo "2023"]
[BlackElo "1911"]
[Annotator "RC"]
[PlyCount "125"]
[EventDate "2024.12.27"]
[EventType "swiss"]
[EventCountry "GER"]
[SourceTitle "playchess.com"]
[Source "ChessBase"]
[SourceQuality "1"]
[TimeControl "40/5400+30:1800+30"]

1. d4 {[%emt 0:00:02]} Nf6 {[%emt 0:00:29]} 2. c4 {[%emt 0:00:03]} e6 {[%emt 0:00:22]} 3. Nf3 {[%emt 0:00:08]} b6 {[%emt 0:00:10]} 4. g3 {[%emt 0:00:05]} Bb7 {[%emt 0:00:11]} 5. Bg2 {[%emt 0:00:06]} Be7 {[%emt 0:00:10]} 6. O-O {[%emt 0:00:06]} Ne4 {[%emt 0:01:46]} 7. Qc2 {[%emt 0:06:48]} f5 {[%emt 0:01:34]} 8. Nc3 {[%emt 0:03:32]} Nxc3 {[%emt 0:02:54]} 9. Qxc3 {[%emt 0:00:21]} O-O {[%emt 0:02:06]} 10. b3 {[%emt 0:01:19]} Bf6 {[%emt 0:01:51]} 11. Bb2 {[%emt 0:01:01]} d6 {[%emt 0:03:45]} 12. Rad1 {[%emt 0:02:11]} Qe7 {[%emt 0:02:27]} 13. Qc1 {[%emt 0:08:57]} Nd7 {[%emt 0:01:45]} 14. Rfe1 {[%emt 0:06:33]} a5 {[%emt 0:10:55]} 15. Nd2 {[%emt 0:23:44]} Bxg2 {[%emt 0:00:12]} 16. Kxg2 {[%emt 0:03:32]} e5 {[%emt 0:02:00]} 17. dxe5 {[%emt 0:05:35]} dxe5 {[%emt 0:03:33]} 18. Ba3 {[%emt 0:01:03]} c5 {[%emt 0:01:31]} 19. Nb1 {[%emt 0:00:18]} e4 {[%emt 0:02:28]} 20. Nc3 {[%emt 0:05:47]} Bxc3 {[%emt 0:00:29]} 21. Qxc3 {[%emt 0:00:02]} Rad8 {[%emt 0:04:27]} 22. Rd2 {[%emt 0:03:34]} Ne5 {[%emt 0:21:09]} 23. Red1 {[%emt 0:01:07]} Rxd2 {[%emt 0:01:07]} 24. Qxd2 {[%emt 0:00:08]} Qb7 {[%emt 0:08:00]} 25. Bb2 {[%emt 0:03:00]} Nd3 {[%emt 0:01:19]} 26. Kg1 {[%emt 0:03:03]} Nxb2 {[%emt 0:04:11]} 27. Qxb2 {[%emt 0:00:06]} Qe7 {[%emt 0:06:36]} 28. Qd2 {[%emt 0:03:01]} Re8 {[%emt 0:04:34]} 29. Qd5+ {[%emt 0:04:40]} Qe6 {[%emt 0:00:00]} 30. Qxe6+ {[%emt 0:03:53]} Rxe6 {[%emt 0:00:01]} 31. Rd7 {[%emt 0:00:06]} Kf8 {[%emt 0:00:28]} 32. Rb7 {[%emt 0:00:20]} Rd6 {[%emt 0:01:02]} 33. a4 {[%emt 0:00:41]} h5 {[%emt 0:03:08]} 34. Kg2 {[%emt 0:02:37]} Kg8 {[%emt 0:00:36]} 35. f3 {[%emt 0:03:09]} Re6 {[%emt 0:01:22]} 36. fxe4 {[%emt 0:00:22]} fxe4 {[%emt 0:00:01]} 37. Kf2 {[%emt 0:00:36]} Kh7 {[%emt 0:00:19]} 38. Ke3 {[%emt 0:01:14]} Kg6 {[%emt 0:00:04]} 39. Rb8 {[%emt 0:01:23]} Kf5 {[%emt 0:03:06]} 40. Rf8+ {[%emt 0:00:45]} Rf6 {[%emt 0:05:15]} 41. Re8 {[%emt 0:30:34]} Rd6 {[%emt 0:31:13]} 42. Rxe4 {[%emt 0:04:25]} Rd1 {[%emt 0:01:13]} 43. Rf4+ {[%emt 0:01:20]} Ke5 {[%emt 0:00:00]} 44. Rf3 {[%emt 0:00:00]} Rb1 {[%emt 0:00:00]} 45. Kf2 {[%emt 0:00:00]} Kd4 {[%emt 0:00:00]} 46. Rd3+ {[%emt 0:00:00]} Ke4 {[%emt 0:00:00]} 47. h4 {[%emt 0:00:00]} Rb2 {[%emt 0:00:00]} 48. Re3+ {[%emt 0:00:00]} Kd4 {[%emt 0:00:00]} 49. Kf3 {[%emt 0:00:00]} Rb1 {[%emt 0:00:00]} 50. Kf4 {[%emt 0:00:00]} Rd1 {[%emt 0:02:21]} 51. Rf3 {[%emt 0:00:00]} Rd2 {[%emt 0:00:25]} 52. Kg5 {[%emt 0:00:00]} Rxe2 {[%emt 0:00:35]} 53. Kxh5 {[%emt 0:00:00]} Re6 {[%emt 0:02:08]} 54. g4 {[%emt 0:00:00]} Ke4 {[%emt 0:00:10]} 55. Rf7 {[%emt 0:00:00]} g6+ {[%emt 0:01:23]} 56. Kg5 {[%emt 0:00:00]} Kd3 {[%emt 0:00:23]} 57. Rf6 {[%emt 0:00:00]} Rxf6 {[%emt 0:00:25]} 58. Kxf6 {[%emt 0:00:00]} Kc3 {[%emt 0:00:10]} 59. Kxg6 {[%emt 0:00:00]} Kxb3 {[%emt 0:00:17]} 60. h5 {[%emt 0:00:00]} Kxa4 {[%emt 0:01:22]} 61. h6 {[%emt 0:00:00]} Kb3 {[%emt 0:00:04]} 62. h7 {[%emt 0:00:00]} a4 {[%emt 0:00:03]} 63. h8=Q {[%emt 0:00:00]} 1-0

[Event "LEM Niedersachsen-A-Open 2025"]
[Site "Verden"]
[Date "2025.01.04"]
[Round "6.18"]
[White "Monnerjahn, Lukas"]
[Black "Ophardt, Paul"]
[Result "1/2-1/2"]
[ECO "A87"]
[WhiteElo "1909"]
[BlackElo "2015"]
[Annotator "NA RC"]
[PlyCount "72"]
[EventDate "2024.12.27"]
[EventType "swiss"]
[EventCountry "GER"]
[SourceTitle "playchess.com"]
[Source "ChessBase"]
[SourceQuality "1"]
[TimeControl "40/5400+30:1800+30"]

1. d4 {[%emt 0:00:09]} f5 {[%emt 0:00:20]} 2. c4 {[%emt 0:00:26]} Nf6 {[%emt 0:00:08]} 3. Nc3 {[%emt 0:00:25]} d6 {[%emt 0:00:22]} 4. Nf3 {[%emt 0:00:38]} g6 {[%emt 0:00:09]} 5. g3 {[%emt 0:05:57]} Bg7 {[%emt 0:00:13]} 6. Bg2 {[%emt 0:00:04]} O-O {[%emt 0:00:09]} 7. d5 {[%emt 0:05:44]} e5 {[%emt 0:03:16]} 8. dxe6 {[%emt 0:00:34]} Bxe6 {[%emt 0:00:36]} 9. Ng5 {[%emt 0:01:18]} Bc8 {[%emt 0:00:29]} 10. Bd5+ {[%emt 0:01:14]} Kh8 {[%emt 0:01:40]} 11. O-O {[%emt 0:13:54]} Qe7 {[%emt 0:03:13]} 12. Bg2 {[%emt 0:02:01]} h6 {[%emt 0:00:44]} 13. Nh3 {[%emt 0:03:14]} Qf7 {[%emt 0:08:20]} 14. Nf4 {[%emt 0:06:41]} Re8 {[%emt 0:05:27]} 15. Ncd5 {[%emt 0:09:00]} Na6 {[%emt 0:07:23]} 16. Rb1 {[%emt 0:02:32]} Ng4 {[%emt 0:06:17]} 17. Qc2 {[%emt 0:03:14]} c6 {[%emt 0:05:51]} 18. Ne3 {[%emt 0:01:43]} Nf6 {[%emt 0:01:41]} 19. Rd1 {[%emt 0:03:45]} Rd8 {[%emt 0:13:57]} 20. b4 {[%emt 0:01:42]} Nc7 {[%emt 0:04:36]} 21. h4 {[%emt 0:03:49]} Ne6 {[%emt 0:02:40]} 22. Nxe6 {[%emt 0:03:27]} Bxe6 {[%emt 0:00:49]} 23. Bb2 {[%emt 0:02:00]} Rac8 {[%emt 0:01:57]} 24. Rd2 {[%emt 0:03:31]} d5 {[%emt 0:14:03]} 25. Rbd1 {[%emt 0:00:39]} Ne4 {[%emt 0:01:17]} 26. Rd3 {[%emt 0:04:53]} b5 {[%emt 0:03:42]} 27. cxb5 {[%emt 0:02:11]} cxb5 {[%emt 0:00:23]} 28. Qb1 {[%emt 0:00:32]} Rc7 {[%emt 0:03:02]} 29. Qa1 {[%emt 0:01:01]} Rcd7 {[%emt 0:03:05]} 30. Bxg7+ {[%emt 0:03:36]} Qxg7 {[%emt 0:00:08]} 31. Qxg7+ {[%emt 0:00:02]} Kxg7 {[%emt 0:00:09]} 32. Nc2 {[%emt 0:02:04]} Rc7 {[%emt 0:01:59]} 33. Nd4 {[%emt 0:01:08]} Bd7 {[%emt 0:00:14]} 34. Nb3 {[%emt 0:07:31]} Be6 {[%emt 0:01:27]} 35. Nd4 {[%emt 0:00:16]} Bd7 {[%emt 0:00:09]} 36. Nb3 {[%emt 0:00:07]} Be6 {[%emt 0:00:13]} 1/2-1/2

[Event "LEM Niedersachsen-A-Open 2025"]
[Site "Verden"]
[Date "2025.01.04"]
[Round "6.19"]
[White "Stein, Luis"]
[Black "Martin, Dennis"]
[Result "1/2-1/2"]
[ECO "B30"]
[WhiteElo "1899"]
[BlackElo "2005"]
[Annotator "RC"]
[PlyCount "95"]
[EventDate "2024.12.27"]
[EventType "swiss"]
[EventCountry "GER"]
[SourceTitle "playchess.com"]
[Source "ChessBase"]
[SourceQuality "1"]
[TimeControl "40/5400+30:1800+30"]

1. e4 {[%emt 0:00:01]} c5 {[%emt 0:00:01]} 2. Nf3 {[%emt 0:00:08]} Nc6 {[%emt 0:00:03]} 3. Bb5 {[%emt 0:00:04]} Nf6 {[%emt 0:00:09]} 4. Bxc6 {[%emt 0:00:35]} dxc6 {[%emt 0:00:04]} 5. d3 {[%emt 0:00:25]} Bg4 {[%emt 0:00:32]} 6. h3 {[%emt 0:00:08]} Bxf3 {[%emt 0:00:12]} 7. Qxf3 {[%emt 0:00:06]} e5 {[%emt 0:00:48]} 8. O-O {[%emt 0:02:16]} Qc7 {[%emt 0:00:59]} 9. Be3 {[%emt 0:01:28]} Be7 {[%emt 0:08:44]} 10. Nd2 {[%emt 0:03:11]} b6 {[%emt 0:03:31]} 11. a4 {[%emt 0:06:08]} O-O {[%emt 0:02:24]} 12. Rfe1 {[%emt 0:04:46]} Rfe8 {[%emt 0:02:30]} 13. Nc4 {[%emt 0:14:58]} Bf8 {[%emt 0:00:31]} 14. a5 {[%emt 0:05:05]} b5 {[%emt 0:01:56]} 15. Nd2 {[%emt 0:00:07]} a6 {[%emt 0:00:26]} 16. Nb3 {[%emt 0:06:53]} Nd7 {[%emt 0:00:04]} 17. Qg3 {[%emt 0:02:08]} Re6 {[%emt 0:09:49]} 18. Nd2 {[%emt 0:05:53]} Bd6 {[%emt 0:03:10]} 19. Rf1 {[%emt 0:03:45]} Rf6 {[%emt 0:03:44]} 20. Nf3 {[%emt 0:42:25]} Nf8 {[%emt 0:04:57]} 21. Bg5 {[%emt 0:00:00]} Re6 {[%emt 0:00:16]} 22. Nh4 {[%emt 0:00:00]} Ng6 {[%emt 0:06:05]} 23. Nf5 {[%emt 0:00:00]} Bf8 {[%emt 0:00:02]} 24. d4 {[%emt 0:00:00]} f6 {[%emt 0:05:39]} 25. Be3 {[%emt 0:00:00]} cxd4 {[%emt 0:00:37]} 26. Nxd4 {[%emt 0:00:00]} Ree8 {[%emt 0:00:08]} 27. Nf5 {[%emt 0:00:00]} c5 {[%emt 0:00:12]} 28. Qg4 {[%emt 0:00:00]} Rad8 {[%emt 0:06:35]} 29. h4 {[%emt 0:00:00]} Kh8 {[%emt 0:00:10]} 30. b4 {[%emt 0:00:00]} Nf4 {[%emt 0:04:59]} 31. bxc5 {[%emt 0:00:00]} Ne6 {[%emt 0:03:21]} 32. Rfd1 {[%emt 0:00:45]} Bxc5 {[%emt 0:02:53]} 33. Bxc5 {[%emt 0:01:24]} Qxc5 {[%emt 0:03:04]} 34. Rxd8 {[%emt 0:00:28]} Rxd8 {[%emt 0:00:02]} 35. Nh6 {[%emt 0:01:10]} Qe7 {[%emt 0:00:24]} 36. Nf5 {[%emt 0:00:13]} Qc7 {[%emt 0:00:05]} 37. Rd1 {[%emt 0:01:29]} g6 {[%emt 0:04:26]} 38. Nh6 {[%emt 0:01:09]} Rxd1+ {[%emt 0:00:36]} 39. Qxd1 {[%emt 0:00:00]} Nd4 {[%emt 0:00:01]} 40. Ng4 {[%emt 0:01:56]} Kg7 {[%emt 0:00:24]} 41. Qd2 {[%emt 0:30:54]} Qf7 {[%emt 0:36:06]} 42. h5 {[%emt 0:00:00]} g5 {[%emt 0:00:00]} 43. h6+ {[%emt 0:00:00]} Kg6 {[%emt 0:00:00]} 44. c3 {[%emt 0:00:00]} Qe6 {[%emt 0:00:00]} 45. f3 {[%emt 0:00:00]} Nc6 {[%emt 0:00:00]} 46. Qe3 {[%emt 0:00:00]} Qd7 {[%emt 0:00:00]} 47. Qb6 {[%emt 0:00:00]} Qa7 {[%emt 0:00:00]} 48. Kf2 {[%emt 0:00:18]} 1/2-1/2

[Event "LEM Niedersachsen-A-Open 2025"]
[Site "Verden"]
[Date "2025.01.04"]
[Round "6.20"]
[White "Amrhein, Thorsten"]
[Black "Schramm, Kilian"]
[Result "1-0"]
[ECO "B11"]
[WhiteElo "1979"]
[BlackElo "1834"]
[Annotator "NA RC"]
[PlyCount "67"]
[EventDate "2024.12.27"]
[EventType "swiss"]
[EventCountry "GER"]
[SourceTitle "playchess.com"]
[Source "ChessBase"]
[SourceQuality "1"]
[TimeControl "40/5400+30:1800+30"]

1. e4 {[%emt 0:00:03]} c6 {[%emt 0:00:03]} 2. Nc3 {[%emt 0:00:15]} d5 {[%emt 0:00:03]} 3. Nf3 {[%emt 0:00:10]} dxe4 {[%emt 0:00:04]} 4. Nxe4 {[%emt 0:00:10]} Nf6 {[%emt 0:00:02]} 5. Qe2 {[%emt 0:00:20]} Nxe4 {[%emt 0:00:05]} 6. Qxe4 {[%emt 0:00:09]} Be6 {[%emt 0:00:03]} 7. c4 {[%emt 0:04:51]} Nd7 {[%emt 0:00:56]} 8. Ng5 {[%emt 0:08:15]} Nc5 {[%emt 0:08:36]} 9. Qe3 {[%emt 0:02:13]} Qa5 {[%emt 0:00:18]} 10. a3 {[%emt 0:02:09]} Nb3 {[%emt 0:05:36]} 11. Qxb3 {[%emt 0:04:29]} Qxg5 {[%emt 0:00:22]} 12. Qxb7 {[%emt 0:00:22]} Qe5+ {[%emt 0:00:19]} 13. Be2 {[%emt 0:00:43]} Rc8 {[%emt 0:01:27]} 14. d3 {[%emt 0:01:25]} Bd7 {[%emt 0:07:38]} 15. Qxa7 {[%emt 0:02:30]} c5 {[%emt 0:02:11]} 16. Qb7 {[%emt 0:02:29]} g6 {[%emt 0:03:42]} 17. Qe4 {[%emt 0:02:25]} Qf6 {[%emt 0:01:07]} 18. O-O {[%emt 0:01:27]} Bg7 {[%emt 0:01:06]} 19. Rb1 {[%emt 0:04:54]} Bc6 {[%emt 0:02:22]} 20. Qf4 {[%emt 0:01:17]} Qe6 {[%emt 0:00:31]} 21. Bg4 {[%emt 0:02:03]} f5 {[%emt 0:00:12]} 22. Bf3 {[%emt 0:00:12]} O-O {[%emt 0:01:11]} 23. Bxc6 {[%emt 0:01:13]} Qxc6 {[%emt 0:00:06]} 24. b4 {[%emt 0:01:20]} e5 {[%emt 0:00:42]} 25. Qd2 {[%emt 0:02:55]} f4 {[%emt 0:00:53]} 26. f3 {[%emt 0:00:28]} Rf5 {[%emt 0:00:56]} 27. Qe2 {[%emt 0:02:55]} Rh5 {[%emt 0:03:11]} 28. Bd2 {[%emt 0:02:15]} e4 {[%emt 0:04:25]} 29. Qxe4 {[%emt 0:01:08]} Bd4+ {[%emt 0:00:17]} 30. Kh1 {[%emt 0:00:23]} Qf6 {[%emt 0:02:40]} 31. Bxf4 {[%emt 0:02:43]} g5 {[%emt 0:02:29]} 32. Bg3 {[%emt 0:03:41]} Rc6 {[%emt 0:02:43]} 33. Qe8+ {[%emt 0:00:28]} Kg7 {[%emt 0:00:06]} 34. Qxh5 {[%emt 0:00:50]} 1-0

[Event "LEM Niedersachsen-A-Open 2025"]
[Site "Verden"]
[Date "2025.01.04"]
[Round "6.21"]
[White "Gehrke, Mathias"]
[Black "Rieping, Lea"]
[Result "1/2-1/2"]
[ECO "B01"]
[WhiteElo "1873"]
[BlackElo "1973"]
[Annotator "NA RC"]
[PlyCount "41"]
[EventDate "2024.12.27"]
[EventType "swiss"]
[EventCountry "GER"]
[SourceTitle "playchess.com"]
[Source "ChessBase"]
[SourceQuality "1"]
[TimeControl "40/5400+30:1800+30"]

1. e4 {[%emt 0:00:05]} d5 {[%emt 0:00:04]} 2. exd5 {[%emt 0:00:07]} Qxd5 {[%emt 0:00:06]} 3. Nc3 {[%emt 0:00:09]} Qa5 {[%emt 0:00:04]} 4. d4 {[%emt 0:00:10]} Nf6 {[%emt 0:00:05]} 5. Bd2 {[%emt 0:00:08]} c6 {[%emt 0:01:20]} 6. Bc4 {[%emt 0:00:15]} Qc7 {[%emt 0:00:09]} 7. Qe2 {[%emt 0:00:51]} e6 {[%emt 0:08:18]} 8. f4 {[%emt 0:06:23]} Bd6 {[%emt 0:02:30]} 9. f5 {[%emt 0:01:54]} Qe7 {[%emt 0:01:36]} 10. fxe6 {[%emt 0:00:48]} Bxe6 {[%emt 0:00:08]} 11. Bxe6 {[%emt 0:00:17]} Qxe6 {[%emt 0:00:08]} 12. Qxe6+ {[%emt 0:00:32]} fxe6 {[%emt 0:00:03]} 13. Nf3 {[%emt 0:03:47]} Nbd7 {[%emt 0:00:20]} 14. O-O {[%emt 0:01:25]} O-O {[%emt 0:00:12]} 15. Rae1 {[%emt 0:03:43]} Rae8 {[%emt 0:00:46]} 16. Ne4 {[%emt 0:00:57]} Nxe4 {[%emt 0:02:16]} 17. Rxe4 {[%emt 0:00:05]} e5 {[%emt 0:00:57]} 18. dxe5 {[%emt 0:11:48]} Nxe5 {[%emt 0:00:13]} 19. Nxe5 {[%emt 0:02:56]} Rxf1+ {[%emt 0:00:18]} 20. Kxf1 {[%emt 0:00:03]} Rxe5 {[%emt 0:00:24]} 21. Rh4 {[%emt 0:01:43]} 1/2-1/2

[Event "LEM Niedersachsen-A-Open 2025"]
[Site "Verden"]
[Date "2025.01.04"]
[Round "6.22"]
[White "Sayas Payyappat"]
[Black "Ehlert, Horst"]
[Result "0-1"]
[ECO "B23"]
[WhiteElo "1823"]
[BlackElo "1929"]
[Annotator "NA RC"]
[PlyCount "74"]
[EventDate "2024.12.27"]
[EventType "swiss"]
[EventCountry "GER"]
[SourceTitle "playchess.com"]
[Source "ChessBase"]
[SourceQuality "1"]
[TimeControl "40/5400+30:1800+30"]

1. e4 {[%emt 0:00:07]} c5 {[%emt 0:00:41]} 2. Nc3 {[%emt 0:00:23]} Nc6 {[%emt 0:01:00]} 3. f4 {[%emt 0:00:26]} e6 {[%emt 0:00:38]} 4. Nf3 {[%emt 0:00:24]} d5 {[%emt 0:01:49]} 5. Bb5 {[%emt 0:01:14]} Nf6 {[%emt 0:07:25]} 6. e5 {[%emt 0:03:46]} Nd7 {[%emt 0:00:41]} 7. Bxc6 {[%emt 0:00:54]} bxc6 {[%emt 0:00:03]} 8. d3 {[%emt 0:00:46]} Be7 {[%emt 0:02:24]} 9. O-O {[%emt 0:00:25]} O-O {[%emt 0:00:28]} 10. Qe1 {[%emt 0:00:55]} Ba6 {[%emt 0:11:01]} 11. g4 {[%emt 0:02:09]} c4 {[%emt 0:03:18]} 12. d4 {[%emt 0:02:01]} c5 {[%emt 0:01:07]} 13. Be3 {[%emt 0:01:00]} Rb8 {[%emt 0:04:54]} 14. Rb1 {[%emt 1:23:00]} cxd4 {[%emt 0:25:51]} 15. Nxd4 {[%emt 0:00:00]} Qc8 {[%emt 0:11:25]} 16. Qg3 {[%emt 0:00:00]} Nc5 {[%emt 0:00:51]} 17. f5 {[%emt 0:00:00]} Ne4 {[%emt 0:02:19]} 18. Nxe4 {[%emt 0:00:00]} dxe4 {[%emt 0:00:13]} 19. f6 {[%emt 0:00:00]} gxf6 {[%emt 0:06:43]} 20. exf6 {[%emt 0:00:00]} Bc5 {[%emt 0:00:45]} 21. Qh4 {[%emt 0:00:00]} Kh8 {[%emt 0:00:29]} 22. c3 {[%emt 0:00:00]} Rg8 {[%emt 0:02:32]} 23. Kh1 {[%emt 0:00:00]} Bxd4 {[%emt 0:03:33]} 24. Bxd4 {[%emt 0:00:00]} e3 {[%emt 0:00:51]} 25. Bxe3 {[%emt 0:00:00]} Qc6+ {[%emt 0:00:51]} 26. Kg1 {[%emt 0:00:00]} Qe4 {[%emt 0:03:44]} 27. Bf4 {[%emt 0:00:00]} Bb7 {[%emt 0:00:52]} 28. Qg3 {[%emt 0:00:00]} Rbd8 {[%emt 0:00:29]} 29. Rbe1 {[%emt 0:00:00]} Qc6 {[%emt 0:00:48]} 30. Re2 {[%emt 0:00:00]} Rd3 {[%emt 0:00:55]} 31. Qh4 {[%emt 0:00:00]} Qh1+ {[%emt 0:01:36]} 32. Kf2 {[%emt 0:00:00]} Rf3+ {[%emt 0:00:25]} 33. Ke1 {[%emt 0:00:00]} Qxf1+ {[%emt 0:01:00]} 34. Kd2 {[%emt 0:00:00]} Rd8+ {[%emt 0:01:01]} 35. Kc2 {[%emt 0:00:00]} Qxe2+ {[%emt 0:00:12]} 36. Bd2 {[%emt 0:00:00]} Qxd2+ {[%emt 0:01:27]} 37. Kb1 {[%emt 0:11:30]} Qd1# 0-1

[Event "LEM Niedersachsen-A-Open 2025"]
[Site "Verden"]
[Date "2025.01.04"]
[Round "6.23"]
[White "Nolting, Dennis"]
[Black "Aden, Keno"]
[Result "1/2-1/2"]
[ECO "B11"]
[WhiteElo "1937"]
[BlackElo "1889"]
[Annotator "NA RC"]
[PlyCount "35"]
[EventDate "2024.12.27"]
[EventType "swiss"]
[EventCountry "GER"]
[SourceTitle "playchess.com"]
[Source "ChessBase"]
[SourceQuality "1"]
[TimeControl "40/5400+30:1800+30"]

1. e4 {[%emt 0:00:02]} c6 {[%emt 0:00:03]} 2. Nc3 {[%emt 0:00:09]} d5 {[%emt 0:00:01]} 3. Qf3 {[%emt 0:00:06]} dxe4 {[%emt 0:01:12]} 4. Nxe4 {[%emt 0:00:07]} Nd7 {[%emt 0:01:36]} 5. Qe3 {[%emt 0:00:29]} Ndf6 {[%emt 0:00:49]} 6. Nxf6+ {[%emt 0:01:24]} Nxf6 {[%emt 0:00:07]} 7. Bc4 {[%emt 0:00:42]} Bf5 {[%emt 0:00:57]} 8. d3 {[%emt 0:00:28]} e6 {[%emt 0:00:35]} 9. Nf3 {[%emt 0:00:19]} Bd6 {[%emt 0:00:47]} 10. Bd2 {[%emt 0:01:17]} Qc7 {[%emt 0:01:31]} 11. Nd4 {[%emt 0:01:02]} Bg6 {[%emt 0:05:13]} 12. O-O-O {[%emt 0:06:02]} O-O-O {[%emt 1:23:39]} 13. Bxe6+ {[%emt 0:11:57]} Kb8 {[%emt 0:00:00]} 14. Bb3 {[%emt 0:06:21]} Bc5 {[%emt 0:00:00]} 15. c3 {[%emt 0:05:03]} Rhe8 {[%emt 0:00:00]} 16. Qf4 {[%emt 0:01:41]} Bxd4 {[%emt 0:00:00]} 17. cxd4 {[%emt 0:01:34]} Nd5 {[%emt 0:00:00]} 18. Bxd5 {[%emt 0:06:18]} 1/2-1/2

[Event "LEM Niedersachsen-A-Open 2025"]
[Site "Verden"]
[Date "2025.01.04"]
[Round "6.24"]
[White "Seer, Maurice"]
[Black "Ludwig, Bernard"]
[Result "1/2-1/2"]
[ECO "B42"]
[WhiteElo "1911"]
[BlackElo "1962"]
[Annotator "NA RC"]
[PlyCount "61"]
[EventDate "2024.12.27"]
[EventType "swiss"]
[EventCountry "GER"]
[SourceTitle "playchess.com"]
[Source "ChessBase"]
[SourceQuality "1"]
[TimeControl "40/5400+30:1800+30"]

1. e4 {[%emt 0:00:05]} c5 {[%emt 0:00:03]} 2. Nf3 {[%emt 0:00:06]} e6 {[%emt 0:00:11]} 3. d4 {[%emt 0:00:19]} cxd4 {[%emt 0:00:08]} 4. Nxd4 {[%emt 0:00:07]} a6 {[%emt 0:00:06]} 5. Bd3 {[%emt 0:01:34]} Nc6 {[%emt 0:00:52]} 6. Nxc6 {[%emt 0:00:28]} dxc6 {[%emt 0:00:14]} 7. Be3 {[%emt 0:03:40]} e5 {[%emt 0:01:57]} 8. O-O {[%emt 0:02:20]} Nf6 {[%emt 0:00:39]} 9. h3 {[%emt 0:01:51]} Bd6 {[%emt 0:02:41]} 10. Nd2 {[%emt 0:01:57]} O-O {[%emt 0:02:55]} 11. Nc4 {[%emt 0:05:30]} Bc7 {[%emt 0:02:06]} 12. Bg5 {[%emt 0:03:13]} Be6 {[%emt 0:04:01]} 13. Qf3 {[%emt 0:08:15]} Bxc4 {[%emt 0:03:17]} 14. Bxc4 {[%emt 0:00:49]} Qe7 {[%emt 0:00:03]} 15. Rad1 {[%emt 0:11:34]} Rad8 {[%emt 0:00:12]} 16. Qf5 {[%emt 0:08:47]} Rxd1 {[%emt 0:05:37]} 17. Rxd1 {[%emt 0:00:20]} Rd8 {[%emt 0:00:10]} 18. Bd3 {[%emt 0:09:25]} Qd7 {[%emt 0:12:36]} 19. Qf3 {[%emt 0:03:39]} Qe6 {[%emt 0:02:24]} 20. Bxf6 {[%emt 0:04:48]} Qxf6 {[%emt 0:00:24]} 21. Qxf6 {[%emt 0:00:49]} gxf6 {[%emt 0:00:08]} 22. g4 {[%emt 0:01:28]} Kg7 {[%emt 0:13:36]} 23. a4 {[%emt 0:01:45]} c5 {[%emt 0:01:55]} 24. b3 {[%emt 0:05:46]} Rd7 {[%emt 0:04:31]} 25. Kg2 {[%emt 0:01:20]} Rd8 {[%emt 0:01:20]} 26. h4 {[%emt 0:01:28]} h6 {[%emt 0:00:32]} 27. Kf3 {[%emt 0:01:49]} Rd7 {[%emt 0:02:44]} 28. Rg1 {[%emt 0:04:39]} Bd8 {[%emt 0:01:31]} 29. Kg3 {[%emt 0:04:00]} Ba5 {[%emt 0:06:59]} 30. f4 {[%emt 0:02:04]} Bd2 {[%emt 0:03:39]} 31. fxe5 {[%emt 0:01:55]} 1/2-1/2